bitfinex/quotes_BTCUSD_20250723
["timestamp","ask_amount","ask_price","bid_price","bid_amount"]
[1753294801275,0.21953434,118240.0,118230.0,0.67551655]
[1753294801505,0.04032563,118240.0,118230.0,0.69438193]
[1753294801739,0.03535542,118240.0,118230.0,0.72598193]
[1753294801949,0.04541642,118240.0,118230.0,0.72916193]
[1753294802381,0.04541642,118240.0,118230.0,0.72070435]
[1753294802592,0.05387379,118240.0,118230.0,0.73443974]
[1753294802843,0.21655455,118240.0,118230.0,0.68400876]
[1753294803059,0.21793071,118240.0,118230.0,0.6924667]
[1753294803273,0.20947391,118240.0,118230.0,0.67750376]
[1753294803486,0.20947391,118240.0,118230.0,0.3195979]
[1753294803696,0.20947391,118240.0,118230.0,0.68401177]
[1753294804359,0.30813704,118240.0,118230.0,0.13352]
[1753294804569,0.30813704,118240.0,118230.0,0.49793387]
[1753294805207,0.30813704,118240.0,118230.0,0.49693387]
[1753294805420,0.85813704,118240.0,118230.0,0.001]
[1753294805641,1.02558606,118240.0,118230.0,0.13252]
[1753294805850,1.02558606,118240.0,118230.0,0.13152]
[1753294806061,0.97703704,118240.0,118230.0,0.49593387]
[1753294806270,0.97803704,118240.0,118230.0,0.49593387]
[1753294807564,0.97803704,118240.0,118230.0,0.13152]
[1753294807780,1.00823704,118240.0,118230.0,0.49593387]
[1753294809772,0.17761974,118230.0,118220.0,0.36441387]
[1753294809990,0.26410704,118230.0,118220.0,0.49593387]
[1753294810199,0.26720704,118230.0,118220.0,0.49593387]
[1753294811062,0.27566491,118230.0,118220.0,0.69742744]
[1753294811277,0.27566491,118230.0,118220.0,0.33301357]
[1753294811490,0.27566491,118230.0,118220.0,0.69742744]
[1753294811703,0.27566491,118230.0,118220.0,0.70053744]
[1753294812167,0.27055491,118230.0,118220.0,0.72830588]
[1753294812389,0.01691553,118230.0,118220.0,0.73676418]
[1753294812595,0.0253729,118230.0,118220.0,0.73676418]
[1753294813050,0.0253729,118230.0,118220.0,0.73776418]
[1753294813240,0.21145066,118230.0,118220.0,0.73776418]
[1753294813680,0.21145066,118230.0,118220.0,0.73776425]
[1753294814101,0.03383062,118230.0,118220.0,0.74622255]
[1753294814747,0.04228863,118230.0,118220.0,0.74622255]
[1753294814985,0.04228928,118230.0,118220.0,0.74622255]
[1753294815198,0.02537311,118230.0,118220.0,0.74622255]
[1753294815418,0.03383105,118230.0,118220.0,0.74622255]
[1753294815633,0.01691524,118230.0,118220.0,0.74622255]
[1753294815841,0.02537304,118230.0,118220.0,0.74622255]
[1753294816500,0.03383098,118230.0,118220.0,0.74622255]
[1753294816712,0.02537304,118230.0,118220.0,0.74622255]
[1753294817169,0.00845751,118230.0,118220.0,0.74622255]
[1753294817391,0.01691517,118230.0,118220.0,0.74622255]
[1753294817649,0.17689883,118240.0,118230.0,0.22703519]
[1753294817869,0.17689876,118240.0,118230.0,0.72804906]
[1753294819105,0.17789876,118240.0,118230.0,0.72804906]
[1753294819476,0.18635599,118240.0,118230.0,0.72804906]
[1753294819658,0.17789876,118240.0,118230.0,0.72804906]
[1753294820637,0.16944175,118240.0,118230.0,0.72804906]
[1753294821029,0.17789876,118240.0,118230.0,0.72804906]
[1753294821900,0.16944175,118240.0,118230.0,0.72804906]
[1753294822075,0.17789876,118240.0,118230.0,0.72804906]
[1753294822476,0.16944175,118240.0,118230.0,0.72804906]
[1753294823091,0.16944168,118240.0,118230.0,0.72804906]
[1753294823348,0.00108311,118240.0,118230.0,1.09246293]
[1753294825119,0.00108311,118240.0,118230.0,1.09346293]
[1753294825323,8.311e-05,118240.0,118230.0,1.09346293]
[1753294825586,8.311e-05,118240.0,118230.0,1.09446293]
[1753294826928,0.00853998,118240.0,118230.0,0.23415519]
[1753294827182,0.01699699,118240.0,118230.0,0.73000906]
[1753294827558,0.20131598,118240.0,118230.0,0.36641387]
[1753294827764,0.19125513,118240.0,118230.0,0.49785387]
[1753294827969,0.19125513,118240.0,118230.0,0.67547368]
[1753294828406,0.19125513,118240.0,118230.0,0.67547376]
[1753294828785,0.19125513,118240.0,118230.0,0.68393177]
[1753294829226,0.18279797,118240.0,118230.0,0.50627196]
[1753294829429,0.18279797,118240.0,118230.0,0.36641387]
[1753294829608,0.18279797,118240.0,118230.0,0.49781387]
[1753294829837,0.29867527,118240.0,118230.0,0.49781387]
[1753294830285,0.35431427,118240.0,118230.0,0.49781387]
[1753294830497,0.29867527,118240.0,118230.0,0.49781387]
[1753294832561,0.29867527,118240.0,118230.0,0.66697567]
[1753294832787,0.26727527,118240.0,118230.0,0.67543376]
[1753294832995,0.275732,118240.0,118230.0,0.68389177]
[1753294833200,0.28418923,118240.0,118230.0,0.69234971]
[1753294833610,0.02545386,118240.0,118230.0,0.74662509]
[1753294833813,0.03391073,118240.0,118230.0,0.74662509]
[1753294834210,0.21151602,118240.0,118230.0,0.74662509]
[1753294834415,0.04236853,118240.0,118230.0,0.74662509]
[1753294834679,0.04236839,118240.0,118230.0,0.74662509]
[1753294835462,0.19460207,118240.0,118230.0,0.73816751]
[1753294835660,0.02748458,118240.0,118230.0,0.73511715]
[1753294835863,0.02748458,118240.0,118230.0,0.74357473]
[1753294836289,0.03594188,118240.0,118230.0,0.74357473]
[1753294836492,0.20508937,118240.0,118230.0,0.74357473]
[1753294836709,0.03594188,118240.0,118230.0,0.74357473]
[1753294837454,0.21354674,118240.0,118230.0,0.74357473]
[1753294838520,0.04439925,118240.0,118230.0,0.74357473]
[1753294839695,0.21354674,118240.0,118230.0,0.74662473]
[1753294840650,0.03594188,118240.0,118230.0,0.74662473]
[1753294841521,0.03391188,118240.0,118230.0,0.74662473]
[1753294842576,0.20305937,118240.0,118230.0,0.73816715]
[1753294843199,0.20305937,118240.0,118230.0,0.74662502]
[1753294843559,0.03391188,118240.0,118230.0,0.74662467]
[1753294843762,0.03391188,118240.0,118230.0,0.74662431]
[1753294843969,0.20305937,118240.0,118230.0,0.72970907]
[1753294844353,0.21151674,118240.0,118230.0,0.72970907]
[1753294844552,0.21151674,118240.0,118230.0,0.72665907]
[1753294844759,0.20508966,118240.0,118230.0,0.72665907]
[1753294845375,0.1966325,118240.0,118230.0,0.22238776]
[1753294845727,0.18281797,118240.0,118230.0,0.13336]
[1753294846009,0.02212764,118240.0,118230.0,0.68385134]
[1753294846153,0.20133591,118240.0,118230.0,0.68385134]
[1753294846359,0.19973207,118240.0,118230.0,0.68596134]
[1753294846786,0.19127513,118240.0,118230.0,0.67750361]
[1753294846993,0.18281797,118240.0,118230.0,0.49988387]
[1753294847210,0.18281797,118240.0,118230.0,0.49777387]
[1753294847418,0.18281797,118240.0,118230.0,0.67539368]
[1753294848403,0.18281797,118240.0,118230.0,0.68385162]
[1753294848629,0.01367005,118240.0,118230.0,0.700767]
[1753294848837,0.01367005,118240.0,118230.0,1.10194087]
[1753294848838,8.311e-05,118240.0,118230.0,1.10194087]
[1753294852126,0.025111,118250.0,118240.0,0.95524648]
[1753294852341,0.025111,118250.0,118240.0,1.08867648]
[1753294852528,0.01665477,118250.0,118240.0,1.09172648]
[1753294852973,0.02511107,118250.0,118240.0,1.09172648]
[1753294853181,0.03456758,118250.0,118240.0,1.09172648]
[1753294853410,0.26516012,118250.0,118240.0,0.37498124]
[1753294853644,0.25980382,118250.0,118240.0,0.49573387]
[1753294853867,0.25980382,118250.0,118240.0,0.67333873]
[1753294854087,0.26826047,118250.0,118240.0,0.70716721]
[1753294854311,0.26826047,118250.0,118240.0,0.71731984]
[1753294854528,0.26516047,118250.0,118240.0,0.6923629]
[1753294854740,0.26826047,118250.0,118240.0,0.6923629]
[1753294855203,0.26826047,118250.0,118240.0,0.70081977]
[1753294855424,0.25980396,118250.0,118240.0,0.49573387]
[1753294855654,0.29220396,118250.0,118240.0,0.49573387]
[1753294856651,0.28374738,118250.0,118240.0,0.49573387]
[1753294856858,0.21611984,118250.0,118240.0,0.67333866]
[1753294857060,0.18371984,118250.0,118240.0,0.6902529]
[1753294857288,0.19217628,118250.0,118240.0,0.70716671]
[1753294857513,0.02304267,118250.0,118240.0,0.70716671]
[1753294857693,0.001,118250.0,118240.0,1.10784058]
[1753294857879,0.00945608,118250.0,118240.0,1.10784058]
[1753294858302,0.001,118250.0,118240.0,1.10784058]
[1753294858512,0.00945601,118250.0,118240.0,1.10784058]
[1753294858715,0.001,118250.0,118240.0,1.10884058]
[1753294859392,0.01788,118270.0,118260.0,0.19448585]
[1753294859602,0.00950848,118270.0,118260.0,0.72813972]
[1753294860256,8.32e-05,118270.0,118260.0,0.72813972]
[1753294860460,0.0254473,118270.0,118260.0,0.72813972]
[1753294860684,0.02544723,118270.0,118260.0,0.75342213]
[1753294860885,0.02544723,118270.0,118260.0,0.75442213]
[1753294861499,0.01699243,118270.0,118260.0,0.75442213]
[1753294861712,8.32e-05,118270.0,118260.0,0.75542213]
[1753294863242,8.32e-05,118270.0,118260.0,0.62414213]
[1753294863460,8.32e-05,118270.0,118260.0,1.119796]
[1753294863686,8.32e-05,118270.0,118260.0,1.2042733]
[1753294864136,8.32e-05,118270.0,118260.0,1.5442733]
[1753294864615,8.32e-05,118270.0,118260.0,1.5432733]
[1753294864833,8.32e-05,118270.0,118260.0,1.5452733]
[1753294865280,8.32e-05,118270.0,118260.0,1.16891339]
[1753294865703,8.32e-05,118270.0,118260.0,1.17191339]
[1753294866577,8.32e-05,118270.0,118260.0,1.17491339]
[1753294867002,8.32e-05,118270.0,118260.0,1.17191339]
[1753294868204,8.32e-05,118270.0,118260.0,1.17591339]
[1753294871432,0.00853778,118270.0,118260.0,0.48040556]
[1753294871686,8.32e-05,118270.0,118260.0,0.75139609]
[1753294871907,0.07616546,118270.0,118260.0,0.75139609]
[1753294872124,0.08462004,118270.0,118260.0,0.75139609]
[1753294872334,0.06771074,118270.0,118260.0,0.75139609]
[1753294872657,0.07616546,118270.0,118260.0,0.75139609]
[1753294872750,0.06771074,118270.0,118260.0,0.75139609]
[1753294872980,0.07616532,118270.0,118260.0,0.75139609]
[1753294873191,0.08462004,118270.0,118260.0,0.75139609]
[1753294873433,0.09307491,118270.0,118260.0,0.75139609]
[1753294873647,0.00853778,118270.0,118260.0,0.75139609]
[1753294873880,8.32e-05,118270.0,118260.0,0.75139609]
[1753294875535,8.32e-05,118270.0,118260.0,0.39592826]
[1753294876015,0.00853778,118270.0,118260.0,0.75139609]
[1753294876487,0.0274673,118270.0,118260.0,0.71554609]
[1753294876706,0.01901243,118270.0,118260.0,0.71554609]
[1753294876917,0.01055778,118270.0,118260.0,0.71554609]
[1753294877339,0.01901243,118270.0,118260.0,0.71554609]
[1753294877545,0.01901243,118270.0,118260.0,0.73114609]
[1753294877758,0.01055778,118270.0,118260.0,0.73114609]
[1753294877962,0.0190125,118270.0,118260.0,0.73114609]
[1753294878182,0.01055778,118270.0,118260.0,0.73114609]
[1753294878388,0.0021032,118270.0,118260.0,0.73114609]
[1753294878602,0.0021032,118270.0,118260.0,0.37567826]
[1753294878813,0.00853778,118270.0,118260.0,0.73114609]
[1753294879894,0.00853778,118270.0,118260.0,0.74664609]
[1753294880079,0.00853778,118270.0,118260.0,0.74959609]
[1753294880330,0.0169925,118270.0,118260.0,0.74959609]
[1753294880535,0.0169925,118270.0,118260.0,0.74664609]
[1753294880756,0.02544737,118270.0,118260.0,0.74664609]
[1753294881167,0.03592245,118270.0,118260.0,0.71554609]
[1753294881370,0.03592245,118270.0,118260.0,0.36007826]
[1753294881596,0.03592245,118270.0,118260.0,0.71554609]
[1753294881778,0.03592238,118270.0,118260.0,0.71554609]
[1753294881920,0.0190125,118270.0,118260.0,0.71554609]
[1753294882160,0.0190125,118270.0,118260.0,0.73094609]
[1753294882363,0.0190125,118270.0,118260.0,0.37547826]
[1753294882563,0.03592231,118270.0,118260.0,0.71554609]
[1753294882770,0.03890231,118270.0,118260.0,0.71554609]
[1753294883427,0.03890224,118270.0,118260.0,0.71554609]
[1753294883622,0.04735732,118270.0,118260.0,0.71554609]
[1753294883855,0.03890224,118270.0,118260.0,0.71554609]
[1753294884278,0.04735725,118270.0,118260.0,0.71554609]
[1753294884842,0.04735718,118270.0,118260.0,0.71343609]
[1753294885050,0.24111139,118270.0,118260.0,0.70494073]
[1753294885457,0.23950755,118270.0,118260.0,0.72214647]
[1753294885670,0.23950755,118270.0,118260.0,0.73060205]
[1753294886119,0.23105275,118270.0,118260.0,0.71814647]
[1753294886342,0.29022542,118270.0,118260.0,0.71914668]
[1753294886558,0.05349286,118270.0,118260.0,0.72760219]
[1753294886785,0.04745178,118270.0,118260.0,0.73305763]
[1753294887016,0.05590693,118270.0,118260.0,0.73405763]
[1753294887241,0.23346674,118270.0,118260.0,0.73405763]
[1753294887461,0.2318629,118270.0,118260.0,0.73405763]
[1753294887646,0.22340818,118270.0,118260.0,0.70869103]
[1753294887887,0.21495324,118270.0,118260.0,0.70869103]
[1753294888157,0.23105324,118270.0,118260.0,0.72560256]
[1753294888332,0.23105324,118270.0,118260.0,0.73405821]
[1753294888567,0.22259816,118270.0,118260.0,0.73405821]
[1753294889016,0.22259816,118270.0,118260.0,0.73405785]
[1753294889262,0.03044787,118270.0,118260.0,0.73405742]
[1753294889505,0.03205171,118270.0,118260.0,0.73405742]
[1753294889770,0.02359663,118270.0,118260.0,0.73405742]
[1753294890011,0.04050672,118270.0,118260.0,0.73611742]
[1753294890242,0.21806696,118270.0,118260.0,0.59650198]
[1753294890451,0.20800825,118270.0,118260.0,0.72560198]
[1753294890962,0.03890366,118270.0,118260.0,0.73405742]
[1753294891197,0.20961209,118270.0,118260.0,0.73405742]
[1753294891442,0.20800825,118270.0,118260.0,0.73405742]
[1753294891678,0.02199301,118270.0,118260.0,0.73611742]
[1753294891910,8.32e-05,118270.0,118260.0,0.77116742]
[1753294894854,0.00853792,118270.0,118260.0,0.2758995]
[1753294895081,0.11430042,118270.0,118260.0,0.76821742]
[1753294895285,0.0020732,118270.0,118260.0,0.76821742]
[1753294895497,0.0020732,118270.0,118260.0,0.75181742]
[1753294895754,0.01052785,118270.0,118260.0,0.75181742]
[1753294896626,0.0020732,118270.0,118260.0,0.75181742]
[1753294897067,8.32e-05,118270.0,118260.0,0.77037742]
[1753294897281,8.32e-05,118270.0,118260.0,0.77033742]
[1753294900984,8.32e-05,118270.0,118260.0,0.63921742]
[1753294901208,0.00853785,118270.0,118260.0,0.63921742]
[1753294901425,0.00853785,118270.0,118260.0,0.77033742]
[1753294901640,8.32e-05,118270.0,118260.0,0.77033742]
[1753294901852,0.00853785,118270.0,118260.0,0.77033742]
[1753294902067,8.32e-05,118270.0,118260.0,0.77033742]
[1753294902278,0.00853792,118270.0,118260.0,0.77033742]
[1753294902501,0.01349792,118270.0,118260.0,0.3718595]
[1753294902717,0.26714,118270.0,118260.0,0.56061922]
[1753294902937,0.29854,118270.0,118260.0,0.67491268]
[1753294903162,0.28163041,118270.0,118260.0,0.67491275]
[1753294903439,0.28163041,118270.0,118260.0,0.49733792]
[1753294903645,0.28163041,118270.0,118260.0,0.54379275]
[1753294904540,0.21400287,118270.0,118260.0,0.55224862]
[1753294905405,0.21400287,118270.0,118260.0,0.1880307]
[1753294905617,0.21400287,118270.0,118260.0,0.57814484]
[1753294905840,0.21400287,118270.0,118260.0,0.56968897]
[1753294906506,0.21400287,118270.0,118260.0,0.57814484]
[1753294906720,0.43907395,118270.0,118260.0,0.002]
[1753294906903,0.85652297,118270.0,118260.0,0.002]
[1753294907144,0.45652297,118270.0,118260.0,0.002]
[1753294907379,0.71510165,118270.0,118260.0,0.002]
[1753294907831,0.84626165,118270.0,118260.0,0.002]
[1753294908048,1.21047957,118270.0,118260.0,0.002]
[1753294908293,0.19451853,118240.0,118230.0,0.55875326]
[1753294908539,0.02736104,118240.0,118230.0,0.55875326]
[1753294908743,0.03581834,118240.0,118230.0,0.56927092]
[1753294908957,0.2134232,118240.0,118230.0,0.56927092]
[1753294909175,0.2049664,118240.0,118230.0,0.56927092]
[1753294909382,0.2049664,118240.0,118230.0,0.54389766]
[1753294909383,0.18805216,118240.0,118230.0,0.54389766]
[1753294909607,0.18256486,118240.0,118230.0,0.55129582]
[1753294910018,0.17410749,118240.0,118230.0,0.54283781]
[1753294910480,0.25858479,118240.0,118230.0,0.36521792]
[1753294910696,0.42204479,118240.0,118230.0,0.001]
[1753294910911,0.42204479,118240.0,118230.0,0.36621792]
[1753294911458,0.57204479,118240.0,118230.0,0.002]
[1753294911700,0.44088479,118240.0,118230.0,0.53537972]
[1753294911934,0.57208479,118240.0,118230.0,0.36621792]
[1753294912149,0.58129788,118240.0,118230.0,0.002]
[1753294912388,0.58129788,118240.0,118230.0,0.36621792]
[1753294912389,0.57208479,118240.0,118230.0,0.36621792]
[1753294913320,0.57208479,118240.0,118230.0,0.002]
[1753294913772,0.57208479,118240.0,118230.0,0.36621792]
[1753294914193,0.57208479,118240.0,118230.0,0.001]
[1753294914812,0.57308479,118240.0,118230.0,0.001]
[1753294915369,0.44188479,118240.0,118230.0,0.36521792]
[1753294915582,0.09889417,118240.0,118230.0,0.56181311]
[1753294915787,0.82565268,118240.0,118230.0,0.54489773]
[1753294915994,0.8087388,118240.0,118230.0,0.54489773]
[1753294916203,0.80028164,118240.0,118230.0,0.53643972]
[1753294916411,0.40028164,118240.0,118230.0,0.54489781]
[1753294917057,0.40028164,118240.0,118230.0,0.56181376]
[1753294917304,0.40028164,118240.0,118230.0,0.56927156]
[1753294917552,0.24507839,118240.0,118230.0,0.59362914]
[1753294917775,0.25453569,118240.0,118230.0,0.58517156]
[1753294917982,0.42268318,118240.0,118230.0,0.57671376]
[1753294918206,0.42368318,118240.0,118230.0,0.59362943]
[1753294918574,0.42368318,118240.0,118230.0,0.58517163]
[1753294918827,0.42268318,118240.0,118230.0,0.59362943]
[1753294919038,0.12030569,118240.0,118230.0,0.60463134]
[1753294919258,0.26012306,118240.0,118230.0,0.61308907]
[1753294919479,0.42927055,118240.0,118230.0,0.61308907]
[1753294919942,0.42927055,118240.0,118230.0,0.61002907]
[1753294920137,0.43027055,118240.0,118230.0,0.61002907]
[1753294920395,0.42280354,118240.0,118230.0,0.59311354]
[1753294920569,0.41334631,118240.0,118230.0,0.57671354]
[1753294920812,0.40488901,118240.0,118230.0,0.57671354]
[1753294921016,0.40488901,118240.0,118230.0,0.58517127]
[1753294921235,0.27352901,118240.0,118230.0,0.58517127]
[1753294921466,0.00945685,118240.0,118230.0,0.61168885]
[1753294921686,0.01791358,118240.0,118230.0,0.97590677]
[1753294921904,0.33056698,118260.0,118250.0,0.02536932]
[1753294922122,0.47030263,118260.0,118250.0,0.5657642]
[1753294922338,0.47229263,118260.0,118250.0,0.57628057]
[1753294922863,0.47229263,118260.0,118250.0,0.5678242]
[1753294923078,0.47229263,118260.0,118250.0,0.55232434]
[1753294923281,0.47229263,118260.0,118250.0,0.55026434]
[1753294923647,0.48148141,118260.0,118250.0,0.54180776]
[1753294923881,0.48148141,118260.0,118250.0,0.55026434]
[1753294924287,0.48348141,118260.0,118250.0,0.55026434]
[1753294924613,0.48348141,118260.0,118250.0,0.55872078]
[1753294924862,0.48348141,118260.0,118250.0,0.56717715]
[1753294925107,0.33896735,118260.0,118250.0,0.57778345]
[1753294925314,0.16136987,118260.0,118250.0,0.57778345]
[1753294925554,0.17828154,118260.0,118250.0,0.59308295]
[1753294925757,0.17828154,118260.0,118250.0,0.55925769]
[1753294925758,0.3474005,118260.0,118250.0,0.55925769]
[1753294925969,0.33894506,118260.0,118250.0,0.5677142]
[1753294926540,0.33362941,118260.0,118250.0,0.54180776]
[1753294926935,0.19389361,118260.0,118250.0,0.36421792]
[1753294927139,0.19389361,118260.0,118250.0,0.49541792]
[1753294927528,0.19389361,118260.0,118250.0,0.66455111]
[1753294927903,0.19389361,118260.0,118250.0,0.49541792]
[1753294928089,0.27837091,118260.0,118250.0,0.36421792]
[1753294928317,0.19389361,118260.0,118250.0,0.66455111]
[1753294928511,0.19389361,118260.0,118250.0,0.67300776]
[1753294928664,0.19389361,118260.0,118250.0,0.66455111]
[1753294928864,0.19389361,118260.0,118250.0,0.49541792]
[1753294929063,0.18470483,118260.0,118250.0,0.49541792]
[1753294929287,0.18470483,118260.0,118250.0,0.66455111]
[1753294929663,0.18470483,118260.0,118250.0,0.30878984]
[1753294929858,0.18470483,118260.0,118250.0,0.67300776]
[1753294930370,0.18470483,118260.0,118250.0,0.68146434]
[1753294931198,0.18470483,118260.0,118250.0,0.68992085]
[1753294932277,0.17624889,118260.0,118240.0,0.56832541]
[1753294932488,0.01691288,118250.0,118240.0,0.23793554]
[1753294932670,0.01691288,118250.0,118240.0,0.37124554]
[1753294932880,0.01691267,118250.0,118240.0,0.37124554]
[1753294933211,0.02536918,118250.0,118240.0,0.37124554]
[1753294933621,0.02536918,118250.0,118240.0,0.73546346]
[1753294933872,0.03382541,118250.0,118240.0,0.72700659]
[1753294934081,0.03382541,118250.0,118240.0,0.73546346]
[1753294934293,0.04228199,118250.0,118240.0,0.73546346]
[1753294934463,0.21141518,118250.0,118240.0,0.73546346]
[1753294934681,0.2029593,118250.0,118240.0,0.72700659]
[1753294934881,0.0125953,118260.0,118250.0,0.19450229]
[1753294935228,0.001,118260.0,118250.0,0.95958813]
[1753294935651,8.32e-05,118270.0,118260.0,0.22628585]
[1753294935864,8.32e-05,118270.0,118260.0,1.17274899]
[1753294936068,8.32e-05,118270.0,118260.0,1.51594899]
[1753294936639,0.4945,118300.0,118290.0,0.59175443]
[1753294936844,0.08453113,118310.0,118300.0,0.1859675]
[1753294937202,0.11354463,118310.0,118300.0,0.55233564]
[1753294937412,0.11354463,118310.0,118300.0,0.56078843]
[1753294937635,0.11354455,118310.0,118300.0,0.56078843]
[1753294937842,0.28619665,118310.0,118300.0,0.55233564]
[1753294938057,0.1155454,118310.0,118300.0,0.56924123]
[1753294938274,0.28619665,118310.0,118300.0,0.5438827]
[1753294938525,0.02535831,118300.0,118290.0,0.32872964]
[1753294938744,0.10506899,118310.0,118300.0,0.17751464]
[1753294939004,0.10864262,118310.0,118300.0,0.18596751]
[1753294939249,0.02102532,118310.0,118300.0,0.19657023]
[1753294939469,0.01745148,118310.0,118300.0,0.22352281]
[1753294939673,0.00899961,118310.0,118300.0,0.24876554]
[1753294939887,0.00899961,118310.0,118300.0,0.61298346]
[1753294940104,0.01745148,118310.0,118300.0,0.61298346]
[1753294940527,0.02690334,118310.0,118300.0,0.61298346]
[1753294940753,0.02690334,118310.0,118300.0,0.60978346]
[1753294940959,0.02690334,118310.0,118300.0,0.61823611]
[1753294941169,0.03435542,118310.0,118300.0,0.60978353]
[1753294941378,0.03732542,118310.0,118300.0,0.57725474]
[1753294941621,0.03732542,118310.0,118300.0,0.59416011]
[1753294941836,0.04577764,118310.0,118300.0,0.58570746]
[1753294942041,0.03732542,118310.0,118300.0,0.58570746]
[1753294942264,0.03732542,118310.0,118300.0,0.58570739]
[1753294942469,0.03732542,118310.0,118300.0,0.57725474]
[1753294942699,0.03732542,118310.0,118300.0,0.58570746]
[1753294942920,0.00899961,118310.0,118300.0,0.98400146]
[1753294943154,8.32e-05,118310.0,118300.0,0.98400146]
[1753294943365,8.32e-05,118310.0,118300.0,0.62855975]
[1753294943597,8.32e-05,118310.0,118300.0,1.06847876]
[1753294944492,8.32e-05,118310.0,118300.0,1.07247876]
[1753294945758,8.32e-05,118310.0,118300.0,1.07547876]
[1753294947475,8.32e-05,118310.0,118300.0,0.72003705]
[1753294947706,8.32e-05,118310.0,118300.0,0.63555975]
[1753294947917,8.32e-05,118310.0,118300.0,0.76779975]
[1753294948573,8.32e-05,118310.0,118300.0,0.76379975]
[1753294948783,8.32e-05,118310.0,118300.0,0.76079975]
[1753294949089,8.32e-05,118310.0,118300.0,0.76179975]
[1753294949837,8.32e-05,118310.0,118300.0,1.11824146]
[1753294950051,8.32e-05,118310.0,118300.0,1.20271876]
[1753294950643,8.32e-05,118310.0,118300.0,0.84727705]
[1753294951473,8.32e-05,118310.0,118300.0,1.20271876]
[1753294951892,8.32e-05,118310.0,118300.0,0.84727705]
[1753294952120,8.32e-05,118310.0,118300.0,1.20271876]
[1753294952331,8.32e-05,118310.0,118300.0,0.84727705]
[1753294953176,8.32e-05,118310.0,118300.0,0.76279975]
[1753294954045,8.32e-05,118310.0,118300.0,0.75959975]
[1753294954502,8.32e-05,118310.0,118300.0,0.76280975]
[1753294959979,0.01364499,118310.0,118300.0,0.21321009]
[1753294960174,0.022097,118310.0,118300.0,0.70894438]
[1753294960377,0.01364499,118310.0,118300.0,0.70894438]
[1753294960697,8.32e-05,118310.0,118300.0,0.74482438]
[1753294961238,8.32e-05,118310.0,118300.0,0.75324771]
[1753294966091,8.32e-05,118310.0,118300.0,1.20159005]
[1753294966529,8.32e-05,118310.0,118300.0,1.06975005]
[1753294966747,8.32e-05,118310.0,118300.0,1.20175005]
[1753294967412,8.32e-05,118310.0,118300.0,1.20075005]
[1753294967628,1e-08,118310.0,118300.0,1.54075005]
[1753294967846,1e-08,118310.0,118300.0,1.59275005]
[1753294968345,1e-08,118310.0,118300.0,1.59175005]
[1753294968568,1e-08,118310.0,118300.0,1.60919907]
[1753294969228,1e-08,118310.0,118300.0,1.66019907]
[1753294969448,0.00200001,118310.0,118300.0,1.61019907]
[1753294969683,0.00200001,118310.0,118300.0,1.65719907]
[1753294969932,0.00200001,118310.0,118300.0,1.60719907]
[1753294970151,0.00500001,118310.0,118300.0,1.65719907]
[1753294971283,0.00500001,118310.0,118300.0,1.40775005]
[1753294971707,0.00500001,118310.0,118300.0,1.17700501]
[1753294973031,0.00500001,118310.0,118300.0,1.09252771]
[1753294973242,0.00500001,118310.0,118300.0,1.07411771]
[1753294973452,0.00500001,118310.0,118300.0,0.94099771]
[1753294973665,0.00500001,118310.0,118300.0,1.07728771]
[1753294973888,0.00200001,118310.0,118300.0,1.07728771]
[1753294975009,1e-08,118310.0,118300.0,1.07728771]
[1753294975443,1e-08,118310.0,118300.0,1.07275887]
[1753294975652,0.01690367,118310.0,118300.0,1.07275887]
[1753294975874,0.0084518,118310.0,118300.0,1.07275887]
[1753294976305,0.0084518,118310.0,118300.0,0.73275887]
[1753294976516,0.0084518,118310.0,118300.0,0.72954887]
[1753294976724,0.0105318,118310.0,118300.0,0.71414887]
[1753294977171,0.29638801,118310.0,118300.0,0.68660063]
[1753294977388,0.29874127,118310.0,118300.0,0.68671664]
[1753294977813,0.12969386,118310.0,118300.0,0.69816929]
[1753294978032,0.30719364,118310.0,118300.0,0.68126385]
[1753294978701,0.30719364,118310.0,118300.0,0.68971664]
[1753294978935,0.30719364,118310.0,118300.0,0.67281098]
[1753294979162,0.29028962,118310.0,118300.0,0.31747478]
[1753294979383,0.28183733,118310.0,118300.0,0.13996]
[1753294979599,0.28183733,118310.0,118300.0,0.31747478]
[1753294980274,0.28183733,118310.0,118300.0,0.33438051]
[1753294980488,0.28183733,118310.0,118300.0,0.68971671]
[1753294980711,0.29874127,118310.0,118300.0,0.68971671]
[1753294981354,0.29028933,118310.0,118300.0,0.68126392]
[1753294981552,0.29028933,118310.0,118300.0,0.31747478]
[1753294981763,0.28183718,118310.0,118300.0,0.68126399]
[1753294981973,0.28183718,118310.0,118300.0,0.68971693]
[1753294982608,0.28183718,118310.0,118300.0,0.68126399]
[1753294982819,0.28183718,118310.0,118300.0,0.69816965]
[1753294983041,0.12124178,118310.0,118300.0,0.7066218]
[1753294983256,0.28294148,118310.0,118300.0,0.7066218]
[1753294983693,0.11389407,118310.0,118300.0,0.3512856]
[1753294983908,0.10544178,118310.0,118300.0,0.5736618]
[1753294984120,0.10544178,118310.0,118300.0,0.68975657]
[1753294984336,0.10544178,118310.0,118300.0,0.6643979]
[1753294984337,0.27448919,118310.0,118300.0,0.6643979]
[1753294984544,0.28998919,118310.0,118300.0,0.6813037]
[1753294984774,0.28998919,118310.0,118300.0,0.67285091]
[1753294984990,0.28998919,118310.0,118300.0,0.68130385]
[1753294985223,0.28998919,118310.0,118300.0,0.68975672]
[1753294985434,0.28998919,118310.0,118300.0,0.56520944]
[1753294985688,0.29844148,118310.0,118300.0,0.70658209]
[1753294985941,0.12939407,118310.0,118300.0,0.57366209]
[1753294986210,0.30689385,118310.0,118300.0,0.69800908]
[1753294986476,0.13784644,118310.0,118300.0,0.70646166]
[1753294986698,0.00511001,118310.0,118300.0,0.70646166]
[1753294986911,1e-08,118310.0,118300.0,0.74433166]
[1753294987374,1e-08,118310.0,118300.0,1.09966786]
[1753294987596,1e-08,118310.0,118300.0,0.74433166]
[1753294988257,0.01690381,118310.0,118300.0,0.74136166]
[1753294988471,0.01886374,118310.0,118300.0,0.72486166]
[1753294988693,0.00196001,118310.0,118300.0,0.72486166]
[1753294988898,0.00845173,118310.0,118300.0,0.72486166]
[1753294989130,0.01041173,118310.0,118300.0,0.72486166]
[1753294989341,0.0188636,118310.0,118300.0,0.72486166]
[1753294989560,0.01041173,118310.0,118300.0,0.72486166]
[1753294989991,0.02731561,118310.0,118300.0,0.72486166]
[1753294990457,1e-08,118310.0,118300.0,1.08316786]
[1753294990688,1e-08,118310.0,118300.0,1.09846786]
[1753294991416,1e-08,118310.0,118300.0,1.18294516]
[1753294992056,1e-08,118310.0,118300.0,1.39014516]
[1753294992511,1e-08,118310.0,118300.0,1.52354516]
[1753294992928,1e-08,118310.0,118300.0,1.39014516]
[1753294993376,1e-08,118310.0,118300.0,1.52350516]
[1753294997092,1e-08,118310.0,118300.0,1.39014516]
[1753294997305,1e-08,118310.0,118300.0,1.54038116]
[1753294997718,1e-08,118310.0,118300.0,1.17656696]
[1753294997926,1e-08,118310.0,118300.0,1.04328696]
[1753294998354,1e-08,118310.0,118300.0,1.17652696]
[1753295001088,1e-08,118310.0,118300.0,1.04328696]
[1753295001295,1e-08,118310.0,118300.0,1.17644696]
[1753295002651,1e-08,118310.0,118300.0,1.08899966]